[Event "*** Titled Tuesday Blitz"]
[Site "Chess.com"]
[Date "2021.02.09"]
[Round "5"]
[White "IngOscarArdila"]
[Black "Fortitudine"]
[Result "1/2-1/2"]
[WhiteElo "2162"]
[BlackElo "2326"]
[TimeControl "180+1"]
[EndTime "10:59:04 PST"]
[Termination "Game drawn by agreement"]

1. d4 {[%clk 0:02:22.4]} 1... Nf6 {[%clk 0:02:59.3]} 2. c4 {[%clk 0:02:22.4]}
2... c5 {[%clk 0:03:00]} 3. d5 {[%clk 0:02:21.4]} 3... b5 {[%clk 0:03:00.2]} 4.
Qc2 {[%clk 0:02:21.6]} 4... d6 {[%clk 0:02:58.1]} 5. e4 {[%clk 0:02:21.5]} 5...
g6 {[%clk 0:02:58]} 6. Nc3 {[%clk 0:02:21.1]} 6... bxc4 {[%clk 0:02:53.6]} 7.
Bxc4 {[%clk 0:02:20.2]} 7... Bg7 {[%clk 0:02:54.1]} 8. h3 {[%clk 0:02:20.3]}
8... O-O {[%clk 0:02:54.2]} 9. Nf3 {[%clk 0:02:20.5]} 9... Ba6 {[%clk
0:02:54.2]} 10. Bxa6 {[%clk 0:02:17.8]} 10... Nxa6 {[%clk 0:02:55.1]} 11. a3
{[%clk 0:02:18]} 11... Rb8 {[%clk 0:02:51.8]} 12. O-O {[%clk 0:02:17.9]} 12...
Nc7 {[%clk 0:02:48.1]} 13. Rb1 {[%clk 0:02:16.7]} 13... Nb5 {[%clk 0:02:44.7]}
14. Re1 {[%clk 0:02:14.2]} 14... Qc7 {[%clk 0:02:30.4]} 15. Bf4 {[%clk 0:02:12]}
15... Nd4 {[%clk 0:02:24.7]} 16. Qd3 {[%clk 0:02:00.9]} 16... Nxf3+ {[%clk
0:02:12.3]} 17. Qxf3 {[%clk 0:02:00.7]} 17... Nd7 {[%clk 0:02:11.8]} 18. a4
{[%clk 0:01:41.9]} 18... a6 {[%clk 0:02:04.3]} 19. Qd3 {[%clk 0:01:40.3]} 19...
Qa5 {[%clk 0:01:43.7]} 20. Bg5 {[%clk 0:01:36]} 20... Rfe8 {[%clk 0:01:43.2]}
21. Bd2 {[%clk 0:01:32.6]} 21... Ne5 {[%clk 0:01:42.7]} 22. Qc2 {[%clk
0:01:23.8]} 22... c4 {[%clk 0:01:33.5]} 23. Nb5 {[%clk 0:01:13.1]} 23... Qb6
{[%clk 0:01:33.4]} 24. Be3 {[%clk 0:01:11.9]} 24... Qb7 {[%clk 0:01:33.3]} 25.
Nd4 {[%clk 0:01:10.4]} 25... Rec8 {[%clk 0:01:32.7]} 26. Red1 {[%clk 0:00:57.7]}
26... Nd3 {[%clk 0:01:28]} 27. Nc6 {[%clk 0:00:57.3]} 27... Nb4 {[%clk
0:01:26.4]} 28. Qxc4 {[%clk 0:00:54.5]} 28... Nxc6 {[%clk 0:01:25.7]} 29. dxc6
{[%clk 0:00:54.7]} 29... Rxc6 {[%clk 0:01:26.2]} 30. Qd5 {[%clk 0:00:51.9]}
30... a5 {[%clk 0:01:16.7]} 31. b3 {[%clk 0:00:43.5]} 31... Rc3 {[%clk
0:01:03.1]} 32. Qxb7 {[%clk 0:00:34.1]} 32... Rxb7 {[%clk 0:01:02.5]} 33. Rd5
{[%clk 0:00:34.4]} 33... Rcxb3 {[%clk 0:00:56.5]} 34. Rxb3 {[%clk 0:00:33.9]}
34... Rxb3 {[%clk 0:00:57.4]} 35. Rxa5 {[%clk 0:00:33.6]} 35... Rb1+ {[%clk
0:00:56.8]} 36. Kh2 {[%clk 0:00:33]} 36... Be5+ {[%clk 0:00:55.9]} 37. g3 {[%clk
0:00:33.2]} 37... Kg7 {[%clk 0:00:52.8]} 38. Ra7 {[%clk 0:00:31.4]} 38... Ra1
{[%clk 0:00:50.8]} 39. Kg2 {[%clk 0:00:27.7]} 39... Bc3 {[%clk 0:00:44.4]} 40.
Rxe7 {[%clk 0:00:23.1]} 40... Rxa4 {[%clk 0:00:43.7]} 41. Rd7 {[%clk 0:00:19.7]}
41... Rxe4 {[%clk 0:00:42.7]} 42. Rxd6 {[%clk 0:00:19]} 42... Bf6 {[%clk
0:00:41.9]} 43. Kf3 {[%clk 0:00:17.9]} 43... Ra4 {[%clk 0:00:40.6]} 44. Rd7
{[%clk 0:00:17.3]} 44... h5 {[%clk 0:00:39.2]} 45. h4 {[%clk 0:00:13.5]} 45...
Rb4 {[%clk 0:00:36.9]} 46. Kg2 {[%clk 0:00:13.7]} 46... Re4 {[%clk 0:00:36.5]}
47. Rb7 {[%clk 0:00:12.9]} 47... Bd4 {[%clk 0:00:33.7]} 48. Bxd4+ {[%clk
0:00:12]} 48... Rxd4 {[%clk 0:00:33.7]} 49. Rb3 {[%clk 0:00:12]} 49... Rd2
{[%clk 0:00:33.6]} 50. Rf3 {[%clk 0:00:12.3]} 50... f5 {[%clk 0:00:33.6]} 51.
Rb3 {[%clk 0:00:13.2]} 51... Rd6 {[%clk 0:00:32.1]} 52. Rb7+ {[%clk 0:00:13.4]}
52... Kf6 {[%clk 0:00:32.5]} 53. Kf3 {[%clk 0:00:14]} 53... Rd3+ {[%clk
0:00:32.3]} 54. Ke2 {[%clk 0:00:14.3]} 54... Rd6 {[%clk 0:00:33.2]} 55. Rb5
{[%clk 0:00:14.1]} 55... Re6+ {[%clk 0:00:33.6]} 56. Kf3 {[%clk 0:00:13.8]}
56... Rd6 {[%clk 0:00:33.3]} 57. Rb2 {[%clk 0:00:13.2]} 57... Rd3+ {[%clk
0:00:32.9]} 58. Ke2 {[%clk 0:00:13.4]} 58... Rd6 {[%clk 0:00:32]} 59. Kf3 {[%clk
0:00:13.6]} 59... Ra6 {[%clk 0:00:31.8]} 60. Rd2 {[%clk 0:00:13.1]} 60... Ke5
{[%clk 0:00:31.9]} 61. Re2+ {[%clk 0:00:13]} 61... Kd4 {[%clk 0:00:32.4]} 62.
Rd2+ {[%clk 0:00:13.7]} 62... Kc3 {[%clk 0:00:32.7]} 63. Rd7 {[%clk 0:00:13.7]}
63... Re6 {[%clk 0:00:27.1]} 64. Rd8 {[%clk 0:00:13.1]} 64... Kc4 {[%clk
0:00:27]} 65. Rd7 {[%clk 0:00:13.3]} 65... Kc5 {[%clk 0:00:27.2]} 66. Rd8 {[%clk
0:00:13.7]} 66... Kc6 {[%clk 0:00:27.5]} 67. Rd3 {[%clk 0:00:13.4]} 67... Kc7
{[%clk 0:00:26.6]} 68. Rd2 {[%clk 0:00:13.1]} 68... Kc6 {[%clk 0:00:26]} 69. Kf4
{[%clk 0:00:13.4]} 69... Kc5 {[%clk 0:00:24.3]} 70. Kg5 {[%clk 0:00:13.7]} 70...
Kc4 {[%clk 0:00:24.7]} 71. Kf4 {[%clk 0:00:12.7]} 71... Kc3 {[%clk 0:00:24.8]}
72. Ra2 {[%clk 0:00:12.7]} 72... Kb3 {[%clk 0:00:25.2]} 73. Rd2 {[%clk
0:00:11.6]} 73... Kc3 {[%clk 0:00:25.5]} 74. Rd7 {[%clk 0:00:10.6]} 74... Kc2
{[%clk 0:00:23.5]} 75. Kf3 {[%clk 0:00:10.8]} 75... Kc3 {[%clk 0:00:23.6]} 76.
Rd5 {[%clk 0:00:10.8]} 76... Kc4 {[%clk 0:00:23.7]} 77. Rd7 {[%clk 0:00:11.7]}
77... Kc5 {[%clk 0:00:23.9]} 78. Rd8 {[%clk 0:00:12.2]} 78... Kc6 {[%clk
0:00:24.1]} 79. Rd2 {[%clk 0:00:12.8]} 79... Kc5 {[%clk 0:00:24.5]} 80. Rd3
{[%clk 0:00:13]} 80... Kc4 {[%clk 0:00:24.8]} 81. Rd8 {[%clk 0:00:13.9]} 81...
Kc5 {[%clk 0:00:25.3]} 82. Rd2 {[%clk 0:00:13.8]} 82... Kc4 {[%clk 0:00:25.4]}
83. Rd8 {[%clk 0:00:13.8]} 83... Kc5 {[%clk 0:00:24.9]} 84. Rd2 {[%clk
0:00:13.8]} 1/2-1/2

[Event "*** Titled Tuesday Blitz"]
[Site "Chess.com"]
[Date "2021.02.09"]
[Round "5"]
[White "TST2014"]
[Black "ckgchess"]
[Result "1-0"]
[WhiteElo "2576"]
[BlackElo "2719"]
[TimeControl "180+1"]
[EndTime "10:59:12 PST"]
[Termination "TST2014 won by resignation"]

1. d4 {[%clk 0:03:00.9]} 1... c5 {[%clk 0:03:00.4]} 2. d5 {[%clk 0:02:59.5]}
2... e5 {[%clk 0:03:00.9]} 3. Nc3 {[%clk 0:02:56.6]} 3... d6 {[%clk 0:03:00.8]}
4. e4 {[%clk 0:02:56.3]} 4... Be7 {[%clk 0:03:01.1]} 5. Bb5+ {[%clk 0:02:55.4]}
5... Kf8 {[%clk 0:03:01.4]} 6. a4 {[%clk 0:02:54.4]} 6... Bg5 {[%clk 0:03:01]}
7. Nf3 {[%clk 0:02:42.8]} 7... Bxc1 {[%clk 0:03:00.7]} 8. Qxc1 {[%clk
0:02:42.6]} 8... a6 {[%clk 0:02:56.8]} 9. Be2 {[%clk 0:02:41.4]} 9... g6 {[%clk
0:02:48.9]} 10. Nd2 {[%clk 0:02:36.6]} 10... Kg7 {[%clk 0:02:48.6]} 11. Nc4
{[%clk 0:02:36.2]} 11... Nh6 {[%clk 0:02:05.2]} 12. a5 {[%clk 0:02:28.5]} 12...
Qe7 {[%clk 0:01:50.1]} 13. Nb6 {[%clk 0:02:23.3]} 13... Ra7 {[%clk 0:01:50.2]}
14. O-O {[%clk 0:02:19]} 14... Nd7 {[%clk 0:01:49.1]} 15. Nca4 {[%clk
0:02:16.7]} 15... Nxb6 {[%clk 0:01:47.7]} 16. Nxb6 {[%clk 0:02:16.1]} 16... Re8
{[%clk 0:01:31.5]} 17. b4 {[%clk 0:01:55.9]} 17... cxb4 {[%clk 0:01:23.7]} 18.
Qe3 {[%clk 0:01:55.4]} 18... Bg4 {[%clk 0:00:58.4]} 19. f3 {[%clk 0:01:51.2]}
19... Bf5 {[%clk 0:00:47]} 20. g4 {[%clk 0:01:42.1]} 20... Bd7 {[%clk
0:00:28.9]} 21. Nxd7 {[%clk 0:01:39]} 21... Raa8 {[%clk 0:00:29.1]} 22. Nb6
{[%clk 0:01:27.5]} 22... Rad8 {[%clk 0:00:29.3]} 23. Rab1 {[%clk 0:01:21.2]}
23... Qc7 {[%clk 0:00:18.8]} 24. Rxb4 {[%clk 0:01:10.6]} 24... Qxc2 {[%clk
0:00:18.4]} 25. Rc1 {[%clk 0:01:07.3]} 25... Qa2 {[%clk 0:00:17.8]} 26. Ra4
{[%clk 0:00:43.7]} 26... Qb2 {[%clk 0:00:16.2]} 27. Nc4 {[%clk 0:00:38.1]} 27...
Qb5 {[%clk 0:00:16.3]} 28. Nb6 {[%clk 0:00:30.5]} 28... Qb2 {[%clk 0:00:15.3]}
29. Ra3 {[%clk 0:00:27.1]} 29... Qb4 {[%clk 0:00:13.6]} 30. Qc3 {[%clk
0:00:22.6]} 30... Qxc3 {[%clk 0:00:12.3]} 31. Raxc3 {[%clk 0:00:22.1]} 31... Re7
{[%clk 0:00:13.2]} 32. Rc7 {[%clk 0:00:21.8]} 32... Rde8 {[%clk 0:00:13.8]} 33.
Rxe7 {[%clk 0:00:19.9]} 33... Rxe7 {[%clk 0:00:14.7]} 34. Rc8 {[%clk 0:00:20.3]}
34... f5 {[%clk 0:00:15.1]} 35. Rd8 {[%clk 0:00:20.1]} 35... fxg4 {[%clk
0:00:13.8]} 36. Rxd6 {[%clk 0:00:18]} 36... gxf3 {[%clk 0:00:14.2]} 37. Bxf3
{[%clk 0:00:18.6]} 37... Nf7 {[%clk 0:00:14.9]} 38. Rd7 {[%clk 0:00:18]} 38...
Kf6 {[%clk 0:00:11.4]} 39. Bg4 {[%clk 0:00:15.8]} 39... h5 {[%clk 0:00:09.5]}
40. Bh3 {[%clk 0:00:15.3]} 40... Ng5 {[%clk 0:00:08.3]} 41. Rxe7 {[%clk
0:00:14.9]} 41... Nxh3+ {[%clk 0:00:08.8]} 42. Kf1 {[%clk 0:00:13.5]} 42... Kxe7
{[%clk 0:00:09]} 43. Nc4 {[%clk 0:00:13.6]} 43... Ng5 {[%clk 0:00:07.9]} 44.
Nxe5 {[%clk 0:00:12.7]} 44... Nxe4 {[%clk 0:00:08.4]} 45. Nxg6+ {[%clk
0:00:13.1]} 45... Kd6 {[%clk 0:00:08.3]} 46. Nf4 {[%clk 0:00:13.7]} 46... Nf6
{[%clk 0:00:05]} 47. Ke2 {[%clk 0:00:13.6]} 47... h4 {[%clk 0:00:05.3]} 48. Kf3
{[%clk 0:00:12.8]} 48... Kc5 {[%clk 0:00:04.9]} 49. Ng2 {[%clk 0:00:10.1]} 49...
b6 {[%clk 0:00:04.1]} 50. axb6 {[%clk 0:00:09.6]} 50... Kxb6 {[%clk 0:00:05]}
51. Kf4 {[%clk 0:00:09.5]} 51... a5 {[%clk 0:00:05.3]} 52. Ke5 {[%clk
0:00:09.7]} 52... Nd7+ {[%clk 0:00:04]} 53. Ke6 {[%clk 0:00:09.9]} 53... Nc5+
{[%clk 0:00:04.4]} 54. Ke7 {[%clk 0:00:10.4]} 54... a4 {[%clk 0:00:05.3]} 55.
Ne3 {[%clk 0:00:10.5]} 55... Kb5 {[%clk 0:00:04.7]} 56. d6 {[%clk 0:00:10.5]}
56... a3 {[%clk 0:00:04.6]} 57. Nd1 {[%clk 0:00:10.3]} 57... a2 {[%clk 0:00:05]}
58. Nc3+ {[%clk 0:00:10.4]} 58... Kc6 {[%clk 0:00:03.5]} 59. Nxa2 {[%clk
0:00:11]} 59... Kd5 {[%clk 0:00:03.7]} 60. Nb4+ {[%clk 0:00:11.4]} 60... Ke5
{[%clk 0:00:03.6]} 61. Na6 {[%clk 0:00:11.2]} 61... Nb7 {[%clk 0:00:02.7]} 62.
d7 {[%clk 0:00:11.3]} 62... Kd5 {[%clk 0:00:03.4]} 63. Nb8 {[%clk 0:00:09.8]}
63... h3 {[%clk 0:00:02.9]} 64. Na6 {[%clk 0:00:09.6]} 64... Ke5 {[%clk
0:00:02.2]} 65. Nb4 {[%clk 0:00:09.8]} 65... Kd4 {[%clk 0:00:01.8]} 66. Na6
{[%clk 0:00:09.8]} 66... Kd5 {[%clk 0:00:02]} 67. Nc7+ {[%clk 0:00:09.2]} 67...
Kc6 {[%clk 0:00:02.2]} 68. Ne6 {[%clk 0:00:09.3]} 68... Kd5 {[%clk 0:00:02.8]}
69. Nd8 {[%clk 0:00:09.5]} 69... Nc5 {[%clk 0:00:02.8]} 70. Nf7 {[%clk
0:00:09.3]} 70... Nxd7 {[%clk 0:00:03.7]} 71. Kxd7 {[%clk 0:00:09.3]} 71... Ke4
{[%clk 0:00:04.6]} 72. Ng5+ {[%clk 0:00:09.9]} 72... Ke3 {[%clk 0:00:05]} 73.
Nxh3 {[%clk 0:00:10.5]} 73... Kf3 {[%clk 0:00:05.9]} 74. Ng1+ {[%clk 0:00:10.8]}
74... Kg4 {[%clk 0:00:06.2]} 75. h3+ {[%clk 0:00:11]} 75... Kh4 {[%clk
0:00:07.1]} 76. Ke6 {[%clk 0:00:11.5]} 76... Kg3 {[%clk 0:00:08]} 77. Kf5 {[%clk
0:00:11.8]} 77... Kg2 {[%clk 0:00:08.9]} 78. h4 {[%clk 0:00:11.9]} 78... Kxg1
{[%clk 0:00:09.8]} 79. h5 {[%clk 0:00:12.7]} 79... Kg2 {[%clk 0:00:10.4]} 80. h6
{[%clk 0:00:13.6]} 80... Kf2 {[%clk 0:00:11.3]} 81. h7 {[%clk 0:00:14.5]} 81...
Ke3 {[%clk 0:00:12.2]} 82. h8=Q {[%clk 0:00:15.4]} 1-0

[Event "*** Titled Tuesday Blitz"]
[Site "Chess.com"]
[Date "2021.02.09"]
[Round "5"]
[White "karinachess1"]
[Black "Xeniya2005"]
[Result "1-0"]
[WhiteElo "2519"]
[BlackElo "2350"]
[TimeControl "180+1"]
[EndTime "10:59:22 PST"]
[Termination "karinachess1 won on time"]

1. Nf3 {[%clk 0:02:49.3]} 1... d5 {[%clk 0:02:58.4]} 2. c4 {[%clk 0:02:48.5]}
2... d4 {[%clk 0:02:57.8]} 3. e3 {[%clk 0:02:45.8]} 3... Nc6 {[%clk 0:02:57]} 4.
exd4 {[%clk 0:02:45.9]} 4... Nxd4 {[%clk 0:02:57.9]} 5. Nxd4 {[%clk 0:02:46.5]}
5... Qxd4 {[%clk 0:02:58.5]} 6. Nc3 {[%clk 0:02:46.4]} 6... Nh6 {[%clk
0:02:55.8]} 7. d3 {[%clk 0:02:37.8]} 7... Nf5 {[%clk 0:02:53.1]} 8. Be2 {[%clk
0:02:34.5]} 8... c6 {[%clk 0:02:35.9]} 9. O-O {[%clk 0:02:31.9]} 9... g6 {[%clk
0:02:33.9]} 10. Qc2 {[%clk 0:01:59.9]} 10... Bg7 {[%clk 0:02:25.5]} 11. Bf3
{[%clk 0:01:53.9]} 11... O-O {[%clk 0:02:19.1]} 12. Rd1 {[%clk 0:01:44]} 12...
Be6 {[%clk 0:02:06.5]} 13. Ne2 {[%clk 0:01:36.5]} 13... Qd7 {[%clk 0:01:58]} 14.
g3 {[%clk 0:01:36.1]} 14... Rad8 {[%clk 0:01:48.3]} 15. Bf4 {[%clk 0:01:34.9]}
15... Nd4 {[%clk 0:01:36.9]} 16. Nxd4 {[%clk 0:01:34.6]} 16... Bxd4 {[%clk
0:01:34.1]} 17. Re1 {[%clk 0:01:32.9]} 17... Bf5 {[%clk 0:01:32.9]} 18. Rad1
{[%clk 0:01:32.2]} 18... Rfe8 {[%clk 0:01:29.2]} 19. Be3 {[%clk 0:01:16.1]}
19... Bxe3 {[%clk 0:01:20.7]} 20. Rxe3 {[%clk 0:01:17]} 20... e5 {[%clk
0:01:16.8]} 21. Qc3 {[%clk 0:01:13.3]} 21... f6 {[%clk 0:01:15.7]} 22. Be2
{[%clk 0:00:58.5]} 22... Kf7 {[%clk 0:00:58.7]} 23. a3 {[%clk 0:00:57.5]} 23...
Qd4 {[%clk 0:00:57.2]} 24. Qxd4 {[%clk 0:00:53]} 24... Rxd4 {[%clk 0:00:58.1]}
25. f3 {[%clk 0:00:47.1]} 25... Red8 {[%clk 0:00:56.9]} 26. Kf2 {[%clk
0:00:46.8]} 26... b6 {[%clk 0:00:49.1]} 27. Bf1 {[%clk 0:00:37.7]} 27... c5
{[%clk 0:00:39.3]} 28. Be2 {[%clk 0:00:37.3]} 28... a6 {[%clk 0:00:38.5]} 29. g4
{[%clk 0:00:25.9]} 29... Be6 {[%clk 0:00:36.9]} 30. Rc1 {[%clk 0:00:26.5]} 30...
Rc8 {[%clk 0:00:32.2]} 31. Re4 {[%clk 0:00:26.4]} 31... Rd6 {[%clk 0:00:28.6]}
32. f4 {[%clk 0:00:21.3]} 32... exf4 {[%clk 0:00:26]} 33. Rxf4 {[%clk
0:00:22.2]} 33... b5 {[%clk 0:00:20.4]} 34. cxb5 {[%clk 0:00:18.4]} 34... axb5
{[%clk 0:00:21.3]} 35. Ke3 {[%clk 0:00:19]} 35... Rdc6 {[%clk 0:00:20.6]} 36.
Rcf1 {[%clk 0:00:18.5]} 36... Bb3 {[%clk 0:00:19.7]} 37. Kd2 {[%clk 0:00:16]}
37... Re8 {[%clk 0:00:19]} 38. Bf3 {[%clk 0:00:15.4]} 38... Rd6 {[%clk
0:00:18.6]} 39. Be2 {[%clk 0:00:11.9]} 39... c4 {[%clk 0:00:17]} 40. d4 {[%clk
0:00:12.4]} 40... Red8 {[%clk 0:00:16]} 41. Kc3 {[%clk 0:00:12.6]} 41... Re8
{[%clk 0:00:16.1]} 42. R1f2 {[%clk 0:00:11.9]} 42... Rde6 {[%clk 0:00:15.9]} 43.
Kd2 {[%clk 0:00:09.6]} 43... Kg7 {[%clk 0:00:15.6]} 44. Bd1 {[%clk 0:00:09.2]}
44... Bxd1 {[%clk 0:00:11.2]} 45. Kxd1 {[%clk 0:00:10.1]} 45... Rd8 {[%clk
0:00:11.6]} 46. Kc2 {[%clk 0:00:09.8]} 46... Re3 {[%clk 0:00:10.9]} 47. Rxf6
{[%clk 0:00:08.8]} 47... Rd3 {[%clk 0:00:09.7]} 48. Rb6 {[%clk 0:00:06.4]} 48...
R8xd4 {[%clk 0:00:08.2]} 49. g5 {[%clk 0:00:04.7]} 49... Rd5 {[%clk 0:00:08.1]}
50. Rb7+ {[%clk 0:00:05.1]} 50... Rd7 {[%clk 0:00:08]} 51. Rxb5 {[%clk
0:00:04.6]} 51... h6 {[%clk 0:00:06.6]} 52. h4 {[%clk 0:00:03.6]} 52... hxg5
{[%clk 0:00:06]} 53. hxg5 {[%clk 0:00:04.5]} 53... Rg3 {[%clk 0:00:05.9]} 54.
Rc5 {[%clk 0:00:04.2]} 54... Rg4 {[%clk 0:00:05.6]} 55. a4 {[%clk 0:00:04.1]}
55... Ra7 {[%clk 0:00:05.6]} 56. a5 {[%clk 0:00:04.5]} 56... Ra6 {[%clk
0:00:05]} 57. Kc3 {[%clk 0:00:04.6]} 57... Ra7 {[%clk 0:00:04.7]} 58. Kb4 {[%clk
0:00:05]} 58... Rb7+ {[%clk 0:00:03.3]} 59. Ka4 {[%clk 0:00:03.7]} 59... c3+
{[%clk 0:00:02]} 60. Ka3 {[%clk 0:00:02.7]} 60... cxb2 {[%clk 0:00:01.6]} 61.
Rxb2 {[%clk 0:00:03.4]} 61... Rg3+ {[%clk 0:00:01.5]} 62. Ka2 {[%clk 0:00:04]}
62... Ra7 {[%clk 0:00:01.5]} 63. Rb6 {[%clk 0:00:03.1]} 63... Rg4 {[%clk
0:00:01.7]} 64. Kb3 {[%clk 0:00:02.7]} 64... Rg3+ {[%clk 0:00:01.8]} 65. Kb4
{[%clk 0:00:03.2]} 65... Rg4+ {[%clk 0:00:01.4]} 66. Kb5 {[%clk 0:00:03.8]}
66... Rg1 {[%clk 0:00:01.8]} 67. Kc6 {[%clk 0:00:03.8]} 67... Rf1 {[%clk
0:00:01.3]} 68. Rb7+ {[%clk 0:00:03.5]} 68... Rxb7 {[%clk 0:00:01.1]} 69. Kxb7
{[%clk 0:00:04.4]} 69... Rb1+ {[%clk 0:00:01.4]} 70. Kc7 {[%clk 0:00:04.3]}
70... Kf7 {[%clk 0:00:01.4]} 71. a6 {[%clk 0:00:04.5]} 71... Ra1 {[%clk
0:00:01.7]} 72. Kb7 {[%clk 0:00:04.6]} 72... Ke6 {[%clk 0:00:01.7]} 73. a7
{[%clk 0:00:04.1]} 73... Rb1+ {[%clk 0:00:02]} 74. Kc7 {[%clk 0:00:03.7]} 74...
Ra1 {[%clk 0:00:02]} 75. Kb6 {[%clk 0:00:04.3]} 75... Ke7 {[%clk 0:00:01]} 76.
Ra5 {[%clk 0:00:04.4]} 1-0

[Event "*** Titled Tuesday Blitz"]
[Site "Chess.com"]
[Date "2021.02.09"]
[Round "5"]
[White "Natalya_Buksa"]
[Black "SergeiAza"]
[Result "0-1"]
[WhiteElo "2566"]
[BlackElo "2761"]
[TimeControl "180+1"]
[EndTime "10:59:31 PST"]
[Termination "SergeiAza won on time"]

1. e4 {[%clk 0:03:00.9]} 1... c5 {[%clk 0:02:59.4]} 2. c3 {[%clk 0:03:00.8]}
2... d6 {[%clk 0:02:57.4]} 3. d4 {[%clk 0:03:00.7]} 3... Nf6 {[%clk 0:02:57.4]}
4. Bd3 {[%clk 0:03:00.4]} 4... Nc6 {[%clk 0:02:56.5]} 5. Ne2 {[%clk 0:02:56.1]}
5... e5 {[%clk 0:02:38.3]} 6. dxe5 {[%clk 0:02:20.4]} 6... Nxe5 {[%clk
0:02:27.2]} 7. Bc2 {[%clk 0:02:20.1]} 7... Be7 {[%clk 0:02:26.5]} 8. O-O {[%clk
0:02:20]} 8... O-O {[%clk 0:02:25.9]} 9. f4 {[%clk 0:02:20.1]} 9... Ng6 {[%clk
0:02:25.6]} 10. Nd2 {[%clk 0:02:16.8]} 10... b6 {[%clk 0:02:25.4]} 11. Nf3
{[%clk 0:01:59.1]} 11... Bb7 {[%clk 0:02:24.5]} 12. Ng3 {[%clk 0:01:59.6]} 12...
Re8 {[%clk 0:02:23.7]} 13. Re1 {[%clk 0:01:50.8]} 13... Bf8 {[%clk 0:02:23.3]}
14. a4 {[%clk 0:01:47.8]} 14... Qc7 {[%clk 0:02:22.8]} 15. a5 {[%clk 0:01:46.1]}
15... b5 {[%clk 0:02:20.8]} 16. b3 {[%clk 0:01:38.3]} 16... Rad8 {[%clk
0:02:20.1]} 17. Qd3 {[%clk 0:01:26.4]} 17... Bc6 {[%clk 0:02:10.4]} 18. c4
{[%clk 0:01:23]} 18... a6 {[%clk 0:02:07.5]} 19. Bd2 {[%clk 0:01:16.4]} 19...
Qb7 {[%clk 0:02:06.2]} 20. Rad1 {[%clk 0:00:57.3]} 20... h5 {[%clk 0:02:02]} 21.
h4 {[%clk 0:00:52]} 21... Qc8 {[%clk 0:01:55.9]} 22. f5 {[%clk 0:00:34.2]} 22...
Ne5 {[%clk 0:01:54.3]} 23. Nxe5 {[%clk 0:00:34.6]} 23... dxe5 {[%clk 0:01:47.7]}
24. Qe3 {[%clk 0:00:34.4]} 24... Rd4 {[%clk 0:01:42.4]} 25. Bc3 {[%clk 0:00:32]}
25... bxc4 {[%clk 0:01:42.8]} 26. Bxd4 {[%clk 0:00:29.2]} 26... exd4 {[%clk
0:01:39.2]} 27. Qg5 {[%clk 0:00:29.6]} 27... d3 {[%clk 0:01:39.3]} 28. Bb1
{[%clk 0:00:25.5]} 28... Qd8 {[%clk 0:01:10.8]} 29. bxc4 {[%clk 0:00:25]} 29...
Qd4+ {[%clk 0:01:10.9]} 30. Qe3 {[%clk 0:00:24.5]} 30... Qxc4 {[%clk 0:01:01.9]}
31. Bxd3 {[%clk 0:00:24.2]} 31... Qb4 {[%clk 0:01:02.1]} 32. e5 {[%clk
0:00:24.1]} 32... c4 {[%clk 0:00:59.2]} 33. Qf4 {[%clk 0:00:23.2]} 33... cxd3
{[%clk 0:00:55.8]} 34. Qxb4 {[%clk 0:00:07.4]} 34... Bxb4 {[%clk 0:00:55.2]} 35.
Rf1 {[%clk 0:00:05.5]} 35... Bc5+ {[%clk 0:00:50.4]} 36. Kh1 {[%clk 0:00:05.1]}
36... Rxe5 {[%clk 0:00:47]} 37. Rxd3 {[%clk 0:00:05.4]} 37... Ng4 {[%clk
0:00:35.1]} 38. Rd8+ {[%clk 0:00:05.4]} 38... Kh7 {[%clk 0:00:34.9]} 39. Nxh5
{[%clk 0:00:05.9]} 39... Bb5 {[%clk 0:00:22.6]} 40. Rc1 {[%clk 0:00:05.6]} 40...
Rxf5 {[%clk 0:00:20.5]} 41. Ng3 {[%clk 0:00:05.5]} 41... Re5 {[%clk 0:00:20.2]}
42. Rc8 {[%clk 0:00:02.6]} 42... Bd6 {[%clk 0:00:17.8]} 43. Rd8 {[%clk 0:00:03]}
43... Rd5 {[%clk 0:00:14.8]} 44. Ne4 {[%clk 0:00:02.2]} 44... Bf4 {[%clk
0:00:10]} 45. Rxd5 {[%clk 0:00:01.7]} 45... Bxc1 {[%clk 0:00:10.6]} 46. Nc3
{[%clk 0:00:02]} 46... Be8 {[%clk 0:00:06.5]} 47. Rh5+ {[%clk 0:00:02.4]} 47...
Kg6 {[%clk 0:00:05.6]} 48. Rc5 {[%clk 0:00:03]} 48... Be3 {[%clk 0:00:04.7]} 49.
Rc8 {[%clk 0:00:03.3]} 49... Nf2+ {[%clk 0:00:04.6]} 50. Kh2 {[%clk 0:00:03.3]}
50... Bd7 {[%clk 0:00:04.9]} 51. Ra8 {[%clk 0:00:02.1]} 51... Bf4+ {[%clk
0:00:03.8]} 52. g3 {[%clk 0:00:01.8]} 52... Be5 {[%clk 0:00:04.5]} 53. Rxa6+
{[%clk 0:00:01.4]} 53... Be6 {[%clk 0:00:05.1]} 54. Kg2 {[%clk 0:00:01.7]} 54...
Ng4 {[%clk 0:00:03.5]} 55. Ne4 {[%clk 0:00:02]} 55... Kf5 {[%clk 0:00:02.8]} 56.
Nf2 {[%clk 0:00:02.3]} 56... Bd5+ {[%clk 0:00:03.2]} 57. Kg1 {[%clk 0:00:02]}
57... Bd4 {[%clk 0:00:03.3]} 58. Rd6 {[%clk 0:00:02.6]} 58... Bxf2+ {[%clk
0:00:03.4]} 59. Kf1 {[%clk 0:00:03.1]} 59... Be4 {[%clk 0:00:02.9]} 60. a6
{[%clk 0:00:03.1]} 60... Bc5 {[%clk 0:00:03.5]} 61. Rd7 {[%clk 0:00:03.3]} 61...
Ne3+ {[%clk 0:00:03.5]} 62. Ke2 {[%clk 0:00:03.2]} 62... Ke6 {[%clk 0:00:03]}
63. Rc7 {[%clk 0:00:03.5]} 63... Bb6 {[%clk 0:00:03.2]} 64. Rc8 {[%clk
0:00:02.8]} 64... Bd5 {[%clk 0:00:02.9]} 65. Re8+ {[%clk 0:00:02.9]} 65... Kd7
{[%clk 0:00:02.9]} 66. Rg8 {[%clk 0:00:03.2]} 66... g6 {[%clk 0:00:03]} 67. g4
{[%clk 0:00:03]} 67... Bc4+ {[%clk 0:00:03.3]} 68. Kf3 {[%clk 0:00:02.7]} 68...
Bxa6 {[%clk 0:00:03.9]} 69. h5 {[%clk 0:00:01.8]} 69... Bb7+ {[%clk 0:00:04.1]}
70. Kf4 {[%clk 0:00:01.8]} 70... Nd5+ {[%clk 0:00:04.6]} 71. Kg5 {[%clk
0:00:01.8]} 71... Be3+ {[%clk 0:00:04.1]} 72. Kh4 {[%clk 0:00:02.1]} 72... gxh5
{[%clk 0:00:03.8]} 73. gxh5 {[%clk 0:00:01.5]} 73... Ke7 {[%clk 0:00:04.4]} 74.
h6 {[%clk 0:00:01.7]} 74... Bxh6 {[%clk 0:00:03.9]} 75. Kh5 {[%clk 0:00:02.5]}
75... Be3 {[%clk 0:00:03.8]} 76. Rb8 {[%clk 0:00:02.9]} 76... Nf6+ {[%clk
0:00:03.9]} 77. Kh4 {[%clk 0:00:02.7]} 77... Bd5 {[%clk 0:00:04.3]} 78. Rb1
{[%clk 0:00:02.2]} 78... Bd4 {[%clk 0:00:03.6]} 79. Re1+ {[%clk 0:00:02.4]}
79... Ne4 {[%clk 0:00:03.6]} 80. Rb1 {[%clk 0:00:02.1]} 80... f5 {[%clk
0:00:03.8]} 81. Rb7+ {[%clk 0:00:02.1]} 81... Ke6 {[%clk 0:00:04.1]} 82. Rb8
{[%clk 0:00:02.1]} 82... Ke5 {[%clk 0:00:04.3]} 83. Kh3 {[%clk 0:00:01.3]} 83...
Ng5+ {[%clk 0:00:03.4]} 0-1